[Event "12th Maria Albulet Memorial 2019"]
[Site "Braila"]
[Date "2019.10.07"]
[Round "7.6"]
[White "Pitigoi, Sabina-Andreea"]
[Black "Makropoulou, Marina"]
[Result "0-1"]
[ECO "E11"]
[WhiteElo "1490"]
[BlackElo "2201"]
[Annotator "ChessBase"]
[PlyCount "94"]
[EventDate "2019.10.02"]
[EventType "swiss"]
[EventCountry "ROU"]
[SourceTitle "playchess.com"]
[Source "ChessBase"]
[SourceQuality "1"]
[TimeControl "40/5400+30:900+30"]

1. d4 {[%emt 0:00:00]} Nf6 {[%emt 0:00:00]} 2. Nf3 {[%emt 0:00:00]} e6 {[%emt 0:00:00]} 3. c4 {[%emt 0:00:06]} Bb4+ {[%emt 0:00:22]} 4. Bd2 {[%emt 0:00:22]} a5 {[%emt 0:00:40]} 5. a3 {[%emt 0:01:12]} Bxd2+ {[%emt 0:02:20]} 6. Qxd2 {[%emt 0:00:23]} b6 {[%emt 0:02:11]} 7. Nc3 {[%emt 0:02:59]} Bb7 {[%emt 0:00:29]} 8. d5 {[%emt 0:01:38]} exd5 {[%emt 0:03:18]} 9. cxd5 {[%emt 0:00:13]} O-O {[%emt 0:01:28]} 10. e3 {[%emt 0:07:13]} Re8 {[%emt 0:06:04]} 11. Bc4 {[%emt 0:02:49]} Na6 {[%emt 0:07:24]} 12. O-O {[%emt 0:01:50]} Nc5 {[%emt 0:01:59]} 13. Rad1 {[%emt 0:02:57]} a4 {[%emt 0:03:05]} 14. Qc2 {[%emt 0:08:49]} Qe7 {[%emt 0:04:21]} 15. Nb5 {[%emt 0:07:26]} d6 {[%emt 0:02:34]} 16. Nc3 {[%emt 0:11:40]} g6 {[%emt 0:06:59]} 17. Nd4 {[%emt 0:03:54]} Qe5 {[%emt 0:09:32]} 18. Bb5 {[%emt 0:04:38]} Rf8 {[%emt 0:06:34]} 19. Nc6 {[%emt 0:03:33]} Bxc6 {[%emt 0:09:34]} 20. dxc6 {[%emt 0:04:03]} Ra5 {[%emt 0:06:45]} 21. Rd4 {[%emt 0:11:58]} Ne6 {[%emt 0:11:51]} 22. Rb4 {[%emt 0:08:07]} h5 {[%emt 0:00:57]} 23. Bxa4 {[%emt 0:02:51]} Rc5 {[%emt 0:03:19]} 24. Qe2 {[%emt 0:03:27]} Ng4 {[%emt 0:03:22]} 25. g3 {[%emt 0:01:36]} d5 {[%emt 0:02:04]} 26. h3 {[%emt 0:02:56]} Nf6 {[%emt 0:00:59]} 27. f4 {[%emt 0:02:33]} Qd6 {[%emt 0:00:05]} 28. e4 {[%emt 0:02:28]} dxe4 {[%emt 0:00:54]} 29. Nxe4 {[%emt 0:00:18]} Nxe4 {[%emt 0:00:09]} 30. Qxe4 {[%emt 0:00:53]} Rd5 {[%emt 0:00:19]} 31. Rf2 {[%emt 0:02:03]} Nc5 {[%emt 0:00:30]} 32. Qc2 {[%emt 0:00:27]} Nd3 {[%emt 0:00:25]} 33. Bb3 {[%emt 0:00:29]} Rc5 {[%emt 0:02:32]} 34. Qd2 {[%emt 0:00:35]} Nxf2 {[%emt 0:00:26]} 35. Qxd6 {[%emt 0:00:29]} Nxh3+ {[%emt 0:00:46]} 36. Kg2 {[%emt 0:00:06]} cxd6 {[%emt 0:00:02]} 37. Rxb6 {[%emt 0:00:42]} Rc8 {[%emt 0:02:41]} 38. c7 {[%emt 0:00:40]} Nxf4+ {[%emt 0:00:53]} 39. gxf4 {[%emt 0:00:04]} R8xc7 {[%emt 0:00:04]} 40. Rxd6 {[%emt 0:00:00]} R5c6 {[%emt 0:00:00]} 41. Rd8+ {[%emt 0:02:09]} Kg7 {[%emt 0:00:39]} 42. Bd1 {[%emt 0:01:47]} Rb6 {[%emt 0:04:28]} 43. b3 {[%emt 0:01:17]} Rcc6 {[%emt 0:00:55]} 44. Re8 {[%emt 0:02:27]} Rd6 {[%emt 0:00:36]} 45. Re1 {[%emt 0:00:18]} Rd3 {[%emt 0:00:51]} 46. a4 {[%emt 0:01:17]} Rbd6 {[%emt 0:00:10]} 47. Be2 {[%emt 0:02:48]} Rxb3 {[%emt 0:01:28]} 0-1

[Event "12th Maria Albulet Memorial 2019"]
[Site "Braila"]
[Date "2019.10.07"]
[Round "7.7"]
[White "Mihailova, Alina"]
[Black "Anghel, Maria"]
[Result "1-0"]
[ECO "A40"]
[WhiteElo "1770"]
[BlackElo "1743"]
[Annotator "NA"]
[PlyCount "87"]
[EventDate "2019.10.02"]
[EventType "swiss"]
[EventCountry "ROU"]
[SourceTitle "playchess.com"]
[Source "ChessBase"]
[SourceQuality "1"]
[TimeControl "40/5400+30:900+30"]

1. d4 {[%emt 0:00:00]} Nf6 {[%emt 0:00:00]} 2. c4 {[%emt 0:00:00]} e6 {[%emt 0:00:00]} 3. g3 {[%emt 0:00:00]} c5 {[%emt 0:00:14]} 4. Nf3 {[%emt 0:00:09]} cxd4 {[%emt 0:00:29]} 5. Nxd4 {[%emt 0:00:11]} Nc6 {[%emt 0:00:34]} 6. Nxc6 {[%emt 0:01:18]} bxc6 {[%emt 0:00:38]} 7. Bg2 {[%emt 0:00:19]} d5 {[%emt 0:03:34]} 8. O-O Be7 9. Qc2 {[%emt 0:03:15]} O-O {[%emt 0:06:18]} 10. Rd1 Qb6 {[%emt 0:05:53]} 11. Nc3 {[%emt 0:03:52]} Ba6 {[%emt 0:05:00]} 12. cxd5 {[%emt 0:03:31]} cxd5 {[%emt 0:01:14]} 13. Be3 {[%emt 0:01:46]} Qa5 {[%emt 0:07:02]} 14. a3 {[%emt 0:04:02]} Rfc8 {[%emt 0:03:00]} 15. b4 {[%emt 0:04:31]} Qc7 {[%emt 0:02:37]} 16. Rac1 {[%emt 0:00:14]} Bc4 {[%emt 0:05:25]} 17. Qb2 {[%emt 0:19:28]} Qb7 {[%emt 0:06:21]} 18. Bd4 Qb8 {[%emt 0:17:37]} 19. e4 {[%emt 0:19:20]} Rd8 {[%emt 0:09:34]} 20. exd5 {[%emt 0:01:10]} exd5 {[%emt 0:00:45]} 21. Re1 {[%emt 0:01:34]} Qb7 {[%emt 0:01:12]} 22. Qd2 {[%emt 0:04:08]} Qd7 23. Nd1 {[%emt 0:07:51]} Rac8 {[%emt 0:07:35]} 24. Nb2 {[%emt 0:01:12]} Bb5 {[%emt 0:03:26]} 25. Rxc8 {[%emt 0:02:10]} Rxc8 {[%emt 0:00:37]} 26. a4 {[%emt 0:00:26]} Bc4 {[%emt 0:04:17]} 27. Bxf6 {[%emt 0:06:26]} gxf6 {[%emt 0:04:03]} 28. b5 {[%emt 0:12:15]} Bf8 {[%emt 0:02:29]} 29. Qf4 {[%emt 0:04:38]} Bg7 {[%emt 0:01:27]} 30. h4 {[%emt 0:00:06]} Qd8 {[%emt 0:03:04]} 31. h5 {[%emt 0:00:55]} h6 {[%emt 0:00:23]} 32. Bh3 {[%emt 0:00:18]} Rb8 {[%emt 0:00:37]} 33. Nxc4 {[%emt 0:00:29]} dxc4 {[%emt 0:00:06]} 34. Qxc4 {[%emt 0:00:07]} Qd2 {[%emt 0:00:53]} 35. Re7 {[%emt 0:01:00]} Qd1+ {[%emt 0:00:28]} 36. Kg2 {[%emt 0:00:10]} Rf8 {[%emt 0:00:34]} 37. Bg4 {[%emt 0:00:20]} Qd6 {[%emt 0:00:31]} 38. Rxa7 {[%emt 0:00:22]} Qe5 {[%emt 0:00:31]} 39. b6 {[%emt 0:01:09]} f5 {[%emt 0:00:25]} 40. Bf3 {[%emt 0:00:00]} Qd4 {[%emt 0:00:00]} 41. Qxd4 {[%emt 0:00:34]} Bxd4 {[%emt 0:00:41]} 42. a5 {[%emt 0:00:07]} Rb8 {[%emt 0:01:33]} 43. Bd5 {[%emt 0:00:56]} Kh8 {[%emt 0:01:30]} 44. Rxf7 {[%emt 0:00:38]} 1-0

[Event "12th Maria Albulet Memorial 2019"]
[Site "Braila"]
[Date "2019.10.07"]
[Round "7.8"]
[White "Verbin, Valentina"]
[Black "Paraschiv, Alexandra"]
[Result "1-0"]
[ECO "C07"]
[WhiteElo "2076"]
[BlackElo "1404"]
[Annotator "NA RC"]
[PlyCount "99"]
[EventDate "2019.10.02"]
[EventType "swiss"]
[EventCountry "ROU"]
[SourceTitle "playchess.com"]
[Source "ChessBase"]
[SourceQuality "1"]
[TimeControl "40/5400+30:900+30"]

1. e4 {[%emt 0:00:00]} e6 {[%emt 0:00:00]} 2. d4 {[%emt 0:00:00]} d5 {[%emt 0:00:00]} 3. Nd2 {[%emt 0:00:00]} c5 {[%emt 0:00:00]} 4. exd5 {[%emt 0:00:00]} Qxd5 {[%emt 0:00:34]} 5. dxc5 {[%emt 0:00:00]} Bxc5 {[%emt 0:00:22]} 6. Ngf3 {[%emt 0:00:03]} Nf6 {[%emt 0:00:41]} 7. Bc4 {[%emt 0:00:08]} Qd7 {[%emt 0:00:42] C07: French Tarrasch: 3...c5, 4 Ngf3 and 4 exd5 Qxd5} (7... Qc6 8. Qe2 O-O 9. Nb3 Nbd7 10. Bf4 Bd6 11. Nbd4 Qb6 12. Bxd6 Qxd6 13. O-O-O Qf4+ 14. Kb1 Nb6 15. Bb3 {0-1 (28) Naiditsch,A (2705)-Le,Q (2737) Riadh 2017}) 8. Qe2 {[%emt 0:02:19]} Nc6 {[%emt 0:00:59]} 9. O-O {[%emt 0:00:23]} O-O {[%emt 0:00:55]} 10. Nb3 {[%emt 0:00:07]} Bb6 $146 {[%emt 0:00:56]} ({Predecessor:} 10... Bd6 11. Bg5 Ng4 12. h3 Nge5 13. Rad1 Qc7 14. Nxe5 Nxe5 15. Rd4 {0-1 (44) Kirchei,V (1943)-Cherepanova,E (1629) Mamaia 2017}) 11. c3 {[%emt 0:04:07]} h6 {[%emt 0:06:42]} 12. Rd1 {[%emt 0:01:55]} Qe7 {[%emt 0:00:36]} 13. a4 {[%emt 0:01:16]} Bc7 {[%emt 0:05:01]} 14. Nbd4 {[%emt 0:03:36]} Bd7 {[%emt 0:02:49]} 15. b4 {[%emt 0:00:29]} a5 {[%emt 0:02:51] [#]} 16. b5 $1 {[%emt 0:01:03]} Nxd4 {[%emt 0:01:01]} 17. Nxd4 {[%emt 0:01:56]} Bd6 {[%emt 0:05:11]} 18. Bd3 {[%emt 0:02:59]} Rac8 {[%emt 0:05:21]} 19. c4 {[%emt 0:01:22]} b6 {[%emt 0:02:35]} 20. Bb2 {[%emt 0:01:03]} Rfd8 {[%emt 0:01:04]} 21. Nf3 {[%emt 0:01:01]} Be8 {[%emt 0:02:00]} 22. Ne5 {[%emt 0:05:41]} Bc5 {[%emt 0:03:12]} 23. h4 {[%emt 0:04:55]} h5 {[%emt 0:11:43]} 24. Qf3 {[%emt 0:08:25]} Rd6 {[%emt 0:12:56]} 25. Bc2 {[%emt 0:02:47]} Rcd8 {[%emt 0:03:19]} 26. Rxd6 {[%emt 0:02:34]} Rxd6 {[%emt 0:00:12] [#]} 27. Nd3 {[%emt 0:01:31]} (27. Rd1 $1 $16) 27... Bd4 {[%emt 0:03:11]} 28. Rd1 {[%emt 0:04:54]} Bxb2 {[%emt 0:00:45]} 29. Nxb2 {[%emt 0:00:04]} Rxd1+ {[%emt 0:00:28]} 30. Nxd1 {[%emt 0:00:46]} Qb4 {[%emt 0:03:05]} 31. Qc3 {[%emt 0:00:44]} Qxc3 {[%emt 0:00:20]} 32. Nxc3 {[%emt 0:00:01]} Nd7 {[%emt 0:00:21]} 33. Ne4 {[%emt 0:00:12]} Kf8 {[%emt 0:01:42]} 34. f3 {[%emt 0:01:20]} Ke7 {[%emt 0:01:14]} 35. Kf2 {[%emt 0:00:08]} f6 {[%emt 0:01:24]} 36. Nd2 {[%emt 0:03:00]} Kd6 {[%emt 0:01:48]} 37. Ke3 {[%emt 0:00:45]} Kc5 {[%emt 0:01:11]} 38. Ne4+ {[%emt 0:04:14]} Kxc4 {[%emt 0:02:27]} 39. Nd6+ {[%emt 0:00:13]} Kc3 {[%emt 0:00:00]} 40. Bb1 {[%emt 0:00:00]} Nc5 {[%emt 0:00:00]} 41. Nxe8 {[%emt 0:00:40]} Nxa4 {[%emt 0:01:06]} 42. Nxg7 {[%emt 0:01:45]} Kb2 {[%emt 0:01:21]} 43. Bd3 {[%emt 0:10:25]} Nc5 {[%emt 0:01:15]} 44. Bc4 {[%emt 0:00:04]} Nb3 {[%emt 0:00:41]} 45. Nxe6 {[%emt 0:01:01]} Kc3 {[%emt 0:01:04]} 46. Bxb3 {[%emt 0:01:45]} Kxb3 {[%emt 0:00:08]} 47. Kd3 {[%emt 0:00:02]} a4 {[%emt 0:03:08]} 48. g4 {[%emt 0:00:25]} hxg4 {[%emt 0:02:20]} 49. fxg4 {[%emt 0:00:06]} a3 {[%emt 0:00:14]} 50. Nd4+ {[%emt 0:00:04]} 1-0

[Event "12th Maria Albulet Memorial 2019"]
[Site "Braila"]
[Date "2019.10.08"]
[Round "8.1"]
[White "Cosman, Andreea-Marioara"]
[Black "Rakhmangulova, Anastasiya"]
[Result "1/2-1/2"]
[ECO "D10"]
[WhiteElo "2165"]
[BlackElo "2186"]
[Annotator "ChessBase"]
[PlyCount "135"]
[EventDate "2019.10.02"]
[EventType "swiss"]
[EventCountry "ROU"]
[SourceTitle "playchess.com"]
[Source "ChessBase"]
[SourceQuality "1"]
[TimeControl "40/5400+30:900+30"]

1. d4 {[%emt 0:00:00]} d5 {[%emt 0:00:00]} 2. c4 {[%emt 0:00:00]} c6 {[%emt 0:00:00]} 3. cxd5 {[%emt 0:00:00]} cxd5 {[%emt 0:00:00]} 4. Nc3 {[%emt 0:00:00]} Nf6 {[%emt 0:00:05]} 5. Bf4 {[%emt 0:00:00]} Nc6 {[%emt 0:00:37]} 6. e3 {[%emt 0:00:06]} a6 {[%emt 0:01:32]} 7. Bd3 {[%emt 0:00:08]} Bg4 {[%emt 0:05:22]} 8. Nge2 {[%emt 0:00:08]} Bxe2 {[%emt 0:04:16]} 9. Qxe2 {[%emt 0:01:15]} e6 {[%emt 0:00:11]} 10. O-O {[%emt 0:08:33]} Bd6 {[%emt 0:02:37]} 11. Bxd6 {[%emt 0:07:52]} Qxd6 {[%emt 0:00:06]} 12. Rac1 {[%emt 0:00:08]} O-O {[%emt 0:01:56]} 13. Na4 {[%emt 0:04:12]} e5 {[%emt 0:07:18]} 14. dxe5 {[%emt 0:03:02]} Nxe5 {[%emt 0:01:35]} 15. Bf5 {[%emt 0:18:26]} g6 {[%emt 0:11:50]} 16. Bc2 {[%emt 0:03:42]} b5 {[%emt 0:07:38]} 17. Nc3 {[%emt 0:00:36]} b4 {[%emt 0:00:05]} 18. Nb1 {[%emt 0:08:15]} Rac8 {[%emt 0:09:59]} 19. Nd2 {[%emt 0:13:55]} d4 {[%emt 0:00:22]} 20. exd4 {[%emt 0:01:24]} Qxd4 {[%emt 0:00:21]} 21. Ne4 {[%emt 0:05:29]} Nd5 {[%emt 0:08:30]} 22. Qd1 {[%emt 0:06:49]} Nf4 {[%emt 0:05:00]} 23. Qxd4 {[%emt 0:00:23]} Ne2+ {[%emt 0:00:04]} 24. Kh1 {[%emt 0:00:05]} Nxd4 {[%emt 0:00:03]} 25. Bb1 {[%emt 0:01:15]} f5 {[%emt 0:08:08]} 26. Ng3 {[%emt 0:05:08]} Rxc1 {[%emt 0:06:03]} 27. Rxc1 {[%emt 0:00:09]} Ng4 {[%emt 0:00:03]} 28. Re1 {[%emt 0:09:55]} Nxf2+ {[%emt 0:02:38]} 29. Kg1 {[%emt 0:00:06]} Ng4 {[%emt 0:00:10]} 30. h3 {[%emt 0:01:18]} f4 {[%emt 0:02:20]} 31. hxg4 {[%emt 0:02:18]} fxg3 {[%emt 0:00:04]} 32. Bd3 {[%emt 0:00:16]} a5 {[%emt 0:04:13]} 33. Re3 {[%emt 0:00:55]} Rc8 {[%emt 0:08:06]} 34. Rxg3 {[%emt 0:00:13]} a4 {[%emt 0:00:03]} 35. Re3 {[%emt 0:00:43]} Rc1+ {[%emt 0:05:17]} 36. Kh2 {[%emt 0:00:24]} Rd1 {[%emt 0:00:30]} 37. Bc4+ {[%emt 0:00:31]} Kf8 {[%emt 0:00:04]} 38. Rd3 {[%emt 0:00:40]} Rxd3 {[%emt 0:00:11]} 39. Bxd3 {[%emt 0:00:05]} Ke7 {[%emt 0:01:21]} 40. Kg3 {[%emt 0:00:00]} g5 {[%emt 0:00:00]} 41. Kf2 {[%emt 0:04:49]} a3 {[%emt 0:09:07]} 42. bxa3 {[%emt 0:00:24]} bxa3 {[%emt 0:00:04]} 43. Ke3 {[%emt 0:01:33]} Ne6 {[%emt 0:03:52]} 44. Bxh7 {[%emt 0:00:36]} Kf6 {[%emt 0:00:03]} 45. Kd2 {[%emt 0:06:59]} Ke5 {[%emt 0:00:51]} 46. Kc2 {[%emt 0:01:37]} Nf4 {[%emt 0:03:44]} 47. Kb3 {[%emt 0:02:33]} Nxg2 {[%emt 0:00:07]} 48. Bf5 {[%emt 0:00:57]} Ne3 {[%emt 0:00:32]} 49. Bc8 {[%emt 0:00:09]} Kd4 {[%emt 0:01:24]} 50. Kxa3 {[%emt 0:01:04]} Kc3 {[%emt 0:00:02]} 51. Be6 {[%emt 0:00:41]} Nc2+ {[%emt 0:00:29]} 52. Ka4 {[%emt 0:00:14]} Kb2 {[%emt 0:00:23]} 53. Bf7 {[%emt 0:00:51]} Ne3 {[%emt 0:00:32]} 54. Kb4 {[%emt 0:00:30]} Nc2+ {[%emt 0:00:32]} 55. Ka4 {[%emt 0:00:32]} Ne3 {[%emt 0:00:04]} 56. Kb4 {[%emt 0:00:12]} Nc2+ {[%emt 0:00:04]} 57. Kc4 {[%emt 0:00:31]} Kxa2 {[%emt 0:01:48]} 58. Kc3+ {[%emt 0:00:43]} Kb1 {[%emt 0:00:57]} 59. Kd2 {[%emt 0:00:12]} Kb2 {[%emt 0:00:23]} 60. Bg6 {[%emt 0:00:47]} Nd4 {[%emt 0:00:24]} 61. Be4 {[%emt 0:00:34]} Ne6 {[%emt 0:00:53]} 62. Kd3 {[%emt 0:00:30]} Kc1 {[%emt 0:00:30]} 63. Bf3 {[%emt 0:00:28]} Nf4+ {[%emt 0:00:16]} 64. Ke4 {[%emt 0:00:29]} Kd2 {[%emt 0:00:18]} 65. Kf5 {[%emt 0:00:28]} Nh3 {[%emt 0:00:28]} 66. Bg2 {[%emt 0:00:06]} Nf2 {[%emt 0:00:04]} 67. Kxg5 {[%emt 0:00:08]} Nxg4 {[%emt 0:00:04]} 68. Kxg4 {[%emt 0:00:04]} 1/2-1/2

[Event "12th Maria Albulet Memorial 2019"]
[Site "Braila"]
[Date "2019.10.08"]
[Round "8.2"]
[White "Cosma, Elena-Luminita"]
[Black "Navrotescu, Andreea-Cristiana"]
[Result "0-1"]
[ECO "A81"]
[WhiteElo "2313"]
[BlackElo "2241"]
[Annotator "ChessBase"]
[PlyCount "120"]
[EventDate "2019.10.02"]
[EventType "swiss"]
[EventCountry "ROU"]
[SourceTitle "playchess.com"]
[Source "ChessBase"]
[SourceQuality "1"]
[TimeControl "40/5400+30:900+30"]

1. d4 {[%emt 0:00:00]} f5 {[%emt 0:00:00]} 2. g3 {[%emt 0:00:00]} Nf6 {[%emt 0:00:00]} 3. Bg2 {[%emt 0:00:00]} g6 {[%emt 0:00:00]} 4. c4 {[%emt 0:00:00]} Bg7 {[%emt 0:00:00]} 5. Nc3 {[%emt 0:00:04]} O-O {[%emt 0:00:00]} 6. Nh3 {[%emt 0:00:07]} Nc6 {[%emt 0:00:05]} 7. O-O {[%emt 0:03:43]} d6 {[%emt 0:00:24]} 8. d5 {[%emt 0:03:42]} Ne5 {[%emt 0:00:08]} 9. b3 {[%emt 0:00:04]} Bd7 {[%emt 0:02:22]} 10. Qc2 {[%emt 0:07:32]} c6 {[%emt 0:00:56]} 11. Nf4 {[%emt 0:02:52]} Qe8 {[%emt 0:04:08]} 12. Bd2 {[%emt 0:12:48]} g5 {[%emt 0:01:12]} 13. Ne6 {[%emt 0:00:37]} Bxe6 {[%emt 0:00:07]} 14. dxe6 {[%emt 0:00:03]} Qh5 {[%emt 0:06:39]} 15. f4 {[%emt 0:03:02]} Ng6 {[%emt 0:18:54]} 16. Bf3 {[%emt 0:13:29]} Ng4 {[%emt 0:01:35]} 17. Bxg4 {[%emt 0:00:27]} Qxg4 {[%emt 0:05:54]} 18. e3 {[%emt 0:02:34]} Rf6 {[%emt 0:06:37]} 19. fxg5 {[%emt 0:17:55]} Qxg5 {[%emt 0:00:40]} 20. Rf2 {[%emt 0:08:21]} Qg4 {[%emt 0:05:57]} 21. Raf1 {[%emt 0:04:20]} Raf8 {[%emt 0:00:23]} 22. Nd1 {[%emt 0:03:49]} Qe4 {[%emt 0:03:53]} 23. Qxe4 {[%emt 0:05:26]} fxe4 {[%emt 0:00:02]} 24. Rxf6 {[%emt 0:00:19]} Rxf6 {[%emt 0:00:27]} 25. Bc3 {[%emt 0:02:47]} Rxe6 {[%emt 0:00:48]} 26. Bxg7 {[%emt 0:00:32]} Kxg7 {[%emt 0:00:02]} 27. Nc3 {[%emt 0:00:27]} Re5 {[%emt 0:01:52]} 28. Rd1 {[%emt 0:01:37]} Kf6 {[%emt 0:01:53]} 29. Rf1+ {[%emt 0:00:54]} Ke6 {[%emt 0:01:30]} 30. Ne2 {[%emt 0:00:11]} c5 {[%emt 0:03:12]} 31. Nc3 {[%emt 0:00:20]} Rf5 {[%emt 0:01:03]} 32. Rd1 {[%emt 0:03:51]} h5 {[%emt 0:03:19]} 33. Kg2 {[%emt 0:00:56]} Rf3 {[%emt 0:02:14]} 34. Re1 {[%emt 0:00:50]} Ke5 {[%emt 0:01:54]} 35. Re2 {[%emt 0:00:34]} e6 {[%emt 0:01:03]} 36. Nd1 {[%emt 0:01:09]} d5 {[%emt 0:00:38]} 37. Nf2 {[%emt 0:00:19]} Ne7 {[%emt 0:02:23]} 38. g4 {[%emt 0:00:37]} hxg4 {[%emt 0:00:56]} 39. Nxg4+ {[%emt 0:00:03]} Kf5 {[%emt 0:02:27]} 40. h3 {[%emt 0:00:00]} d4 {[%emt 0:00:00]} 41. Nh2 {[%emt 0:10:47]} Rxe3 {[%emt 0:09:26]} 42. Rxe3 {[%emt 0:00:04]} dxe3 {[%emt 0:00:04]} 43. Nf1 {[%emt 0:00:28]} Kf4 {[%emt 0:00:57]} 44. Ng3 {[%emt 0:00:08]} Nf5 {[%emt 0:00:27]} 45. Ne2+ {[%emt 0:00:15]} Kg5 {[%emt 0:01:11]} 46. Nc3 {[%emt 0:01:15]} Kf4 {[%emt 0:00:19]} 47. Ne2+ {[%emt 0:00:04]} Ke5 {[%emt 0:00:06]} 48. Kf1 {[%emt 0:00:42]} Nh4 {[%emt 0:02:34]} 49. Ke1 {[%emt 0:01:52]} Kf5 {[%emt 0:03:31]} 50. Kf1 {[%emt 0:00:36]} b6 {[%emt 0:01:55]} 51. Kg1 {[%emt 0:01:01]} Kg5 {[%emt 0:00:42]} 52. Kf1 {[%emt 0:01:04]} Nf5 {[%emt 0:00:42]} 53. Kg2 {[%emt 0:01:41]} Kh4 {[%emt 0:04:18]} 54. Nf4 {[%emt 0:01:51]} Nd4 {[%emt 0:00:17]} 55. Ng6+ {[%emt 0:00:09]} Kg5 {[%emt 0:00:18]} 56. Ne5 {[%emt 0:00:10]} e2 {[%emt 0:00:42]} 57. Kf2 {[%emt 0:00:56]} e3+ {[%emt 0:03:22]} 58. Ke1 {[%emt 0:00:17]} Kh4 {[%emt 0:01:10]} 59. Ng4 {[%emt 0:00:23]} Kxh3 {[%emt 0:00:11]} 60. Nxe3 {[%emt 0:00:08]} Kg3 {[%emt 0:00:15]} 0-1

[Event "12th Maria Albulet Memorial 2019"]
[Site "Braila"]
[Date "2019.10.08"]
[Round "8.6"]
[White "Didiliuc, Dariana-Gabriela"]
[Black "Anghel, Maria"]
[Result "1/2-1/2"]
[ECO "B12"]
[WhiteElo "1798"]
[BlackElo "1743"]
[Annotator "NA"]
[PlyCount "59"]
[EventDate "2019.10.02"]
[EventType "swiss"]
[EventCountry "ROU"]
[SourceTitle "playchess.com"]
[Source "ChessBase"]
[SourceQuality "1"]
[TimeControl "40/5400+30:900+30"]

1. e4 {[%emt 0:00:51]} c6 {[%emt 0:00:00]} 2. d4 {[%emt 0:00:26]} d5 {[%emt 0:00:00]} 3. e5 {[%emt 0:00:25]} c5 {[%emt 0:00:40]} 4. c3 {[%emt 0:00:22]} Nc6 {[%emt 0:01:27]} 5. f4 {[%emt 0:00:48]} Bf5 {[%emt 0:04:27]} 6. Nf3 {[%emt 0:01:47]} e6 {[%emt 0:00:16]} 7. Be2 {[%emt 0:00:57]} cxd4 {[%emt 0:05:55]} 8. cxd4 {[%emt 0:01:18]} Bxb1 {[%emt 0:06:52]} 9. Rxb1 {[%emt 0:00:12]} Bb4+ {[%emt 0:04:00]} 10. Bd2 {[%emt 0:02:26]} Qa5 {[%emt 0:07:23]} 11. a3 {[%emt 0:00:42]} Bxd2+ {[%emt 0:00:32]} 12. Qxd2 {[%emt 0:00:06]} Qxd2+ {[%emt 0:01:39]} 13. Kxd2 {[%emt 0:00:14]} Nge7 {[%emt 0:00:38]} 14. g4 {[%emt 0:00:27]} a6 {[%emt 0:05:55]} 15. b4 {[%emt 0:00:47]} b5 {[%emt 0:03:55]} 16. Rhc1 {[%emt 0:01:23]} Kd7 {[%emt 0:05:22]} 17. Rc5 {[%emt 0:02:40]} h6 {[%emt 0:05:00]} 18. h4 {[%emt 0:00:41]} h5 {[%emt 0:07:00]} 19. g5 {[%emt 0:05:33]} Nf5 {[%emt 0:02:21]} 20. Rbc1 {[%emt 0:02:00]} Rhc8 {[%emt 0:06:30]} 21. R1c3 {[%emt 0:01:48]} Ng3 {[%emt 0:09:09]} 22. Bd3 {[%emt 0:02:41]} Ne4+ {[%emt 0:03:16]} 23. Bxe4 {[%emt 0:01:03]} dxe4 {[%emt 0:00:09]} 24. d5 {[%emt 0:01:39]} Ne7 {[%emt 0:08:36]} 25. dxe6+ {[%emt 0:04:24]} fxe6 {[%emt 0:00:10]} 26. Rxc8 {[%emt 0:00:54]} Rxc8 {[%emt 0:00:44]} 27. Rxc8 {[%emt 0:05:30]} Kxc8 {[%emt 0:00:08]} 28. Nd4 {[%emt 0:00:13]} Kd7 {[%emt 0:00:29]} 29. Ke3 {[%emt 0:00:33]} Nf5+ {[%emt 0:01:34]} 30. Kxe4 1/2-1/2